lending/lending_fUSD_20251114
["ID","MTS","AMOUNT","RATE_DAILY","PERIOD"]
[393918698,1763094639580,-500.0,0.00017999,2]
[393918699,1763094639589,-500.0,0.00017999,2]
[393918700,1763094639598,-500.0,0.00017999,2]
[393918701,1763094639607,-500.0,0.00017999,2]
[393918702,1763094639616,-628.66822249,0.00017999,2]
[393918703,1763094639625,-500.0,0.00017999,2]
[393918704,1763094639635,-500.0,0.00017999,2]
[393918705,1763094639644,-510.26419869,0.00017999,2]
[393918706,1763094639653,-500.0,0.00017999,2]
[393918707,1763094639662,-500.0,0.00017999,2]
[393918708,1763094639671,-500.0,0.00017999,2]
[393918709,1763094639680,-217.49787883,0.00017999,2]
[393918710,1763094639691,-195.29,0.00017999,2]
[393918711,1763094639700,-300.0,0.00017999,2]
[393918712,1763094639709,-300.0,0.00017999,2]
[393918713,1763094639718,-300.0,0.00017999,2]
[393918714,1763094639727,-3690.0,0.00018,2]
[393918715,1763094639737,-9567983.95956672,0.00018,2]
[393918735,1763094739171,-575.0,0.00017686,2]
[393918736,1763094739182,-7138.46398572,0.00018,2]
[393918737,1763094739199,-3928.4444328,0.00018,2]
[393918747,1763094903341,370.97849692,0.00041091,90]
[393918748,1763094913382,161.446682,0.00041091,120]
[393918749,1763094913777,161.446682,0.00041091,120]
[393918750,1763094914186,161.446682,0.00041091,120]
[393918751,1763094914725,154.498265,0.00041091,120]
[393918752,1763094915070,154.498265,0.00041091,120]
[393918753,1763094915132,153.429594,0.00041091,120]
[393918754,1763094915404,154.498265,0.00041091,120]
[393918755,1763094915472,153.429594,0.00041091,120]
[393918756,1763094915852,154.498265,0.00041091,120]
[393918757,1763094915910,153.429594,0.00041091,120]
[393918758,1763094916255,154.498265,0.00041091,120]
[393918759,1763094916318,153.429594,0.00041091,120]
[393918760,1763094916672,154.498265,0.00041091,120]
[393918761,1763094916913,153.429594,0.00041091,120]
[393918762,1763094917531,153.429594,0.00041091,120]
[393918763,1763094917895,157.919103,0.00041091,120]
[393918764,1763094918144,153.429594,0.00041091,120]
[393918765,1763094918265,157.919103,0.00041091,120]
[393918766,1763094918627,157.919103,0.00041091,120]
[393918767,1763094919306,157.919103,0.00041091,120]
[393918768,1763094919438,153.429594,0.00041091,120]
[393918769,1763094919791,153.429594,0.00041091,120]
[393918770,1763094945303,665.28733803,0.00041091,30]
[393918818,1763095231363,500.0,0.00041092,30]
[393918819,1763095231600,500.0,0.00041092,30]
[393918820,1763095233408,500.0,0.00041092,30]
[393918821,1763095233646,500.0,0.00041092,30]
[393918822,1763095242871,500.0,0.00041092,30]
[393918823,1763095243119,522.66,0.00041092,30]
[393918824,1763095244174,500.0,0.00041092,30]
[393918825,1763095244423,311.56398267,0.00041092,30]
[393918826,1763095248219,500.0,0.00041092,30]
[393918827,1763095248488,500.0,0.00041092,30]
[393918828,1763095248738,166.66,0.00041092,30]
[393918829,1763095252365,500.0,0.00041092,30]
[393918830,1763095252638,500.0,0.00041092,30]
[393918831,1763095255281,500.0,0.00041092,30]
[393918832,1763095255526,500.0,0.00041092,30]
[393918833,1763095259754,500.0,0.00041092,30]
[393918834,1763095260010,500.0,0.00041092,30]
[393918835,1763095260264,527.76,0.00041092,30]
[393918836,1763095260936,500.0,0.00041092,30]
[393918852,1763095261633,500.0,0.00041092,30]
[393918856,1763095261890,500.0,0.00041092,30]
[393918866,1763095262123,500.0,0.00041092,30]
[393918876,1763095262391,527.94408683,0.00041092,30]
[393918887,1763095276652,500.0,0.00041092,30]
[393918888,1763095276909,500.0,0.00041092,30]
[393918892,1763095286081,500.0,0.00041092,30]
[393918893,1763095289242,508.37816963,0.00041092,30]
[393918894,1763095291302,500.0,0.00041092,30]
[393918895,1763095297059,500.0,0.00041092,30]
[393918896,1763095297791,500.0,0.00041092,30]
[393918897,1763095299119,500.0,0.00041092,30]
[393918898,1763095304185,500.0,0.00041092,30]
[393918899,1763095311769,500.0,0.00041092,30]
[393918900,1763095316364,200.0,0.00016837,2]
[393918902,1763095321345,500.0,0.00041092,30]
[393918905,1763095345853,154.680057,0.00041092,120]
[393918906,1763095346150,154.680057,0.00041092,120]
[393918908,1763095382040,351.52,0.00041092,30]
[393918909,1763095396447,500.0,0.00041092,30]
[393918910,1763095396696,500.0,0.00041092,30]
[393918911,1763095449355,500.0,0.00041092,30]
[393918912,1763095449595,500.0,0.00041092,30]
[393918913,1763095449837,500.0,0.00041092,30]
[393918914,1763095450071,500.0,0.00041092,30]
[393918915,1763095465800,427.06,0.00041092,30]
[393918916,1763095502986,500.0,0.00041092,30]
[393918917,1763095503275,500.0,0.00041092,30]
[393918918,1763095503360,500.0,0.00041092,30]
[393918919,1763095503542,500.0,0.00041092,30]
[393918920,1763095503597,500.0,0.00041092,30]
[393918921,1763095503796,500.0,0.00041092,30]
[393918922,1763095503853,500.0,0.00041092,30]
[393918923,1763095504049,500.0,0.00041092,30]
[393918924,1763095504120,500.0,0.00041092,30]
[393918925,1763095504290,500.0,0.00041092,30]
[393918926,1763095504546,500.0,0.00041092,30]
[393918927,1763095509347,1298.43,0.00016438,2]
[393918928,1763095513619,500.0,0.00041092,30]
[393918929,1763095515748,500.0,0.00041092,30]
[393918930,1763095516034,500.0,0.00041092,30]
[393918931,1763095516274,500.0,0.00041092,30]
[393918932,1763095516555,500.0,0.00041092,30]
[393918933,1763095520100,500.0,0.00041092,30]
[393918934,1763095520355,500.0,0.00041092,30]
[393918935,1763095525607,500.0,0.00041092,30]
[393918936,1763095527392,510.92902816,0.00041092,30]
[393918937,1763095541425,500.0,0.00041092,30]
[393918938,1763095541959,500.0,0.00041092,30]
[393918939,1763095542423,600.0,0.00041092,30]
[393918941,1763095560378,95.86941188,0.000162,2]
[393918942,1763095560404,54.13058812,0.000162,2]
[393918958,1763095636894,200.0,0.00016728,2]
[393918963,1763095713596,500.0,0.00041092,30]
[393918964,1763095713830,500.0,0.00041092,30]
[393918965,1763095714200,500.0,0.00041092,30]
[393918966,1763095714435,500.0,0.00041092,30]
[393918967,1763095714667,526.16377481,0.00041092,30]
[393918968,1763095742655,880.9,0.00041092,30]
[393918969,1763095742889,880.9,0.00041092,30]
[393918970,1763095743136,880.9,0.00041092,30]
[393918971,1763095743377,880.9,0.00041092,30]
[393918972,1763095743642,880.9,0.00041092,30]
[393918973,1763095743867,880.9,0.00041092,30]
[393918974,1763095744113,880.9,0.00041092,30]
[393918975,1763095744339,880.9,0.00041092,30]
[393918976,1763095744582,880.9,0.00041092,30]
[393918977,1763095744830,880.9,0.00041092,30]
[393918978,1763095745064,880.9,0.00041092,30]
[393918979,1763095745348,880.9,0.00041092,30]
[393918980,1763095745585,880.9,0.00041092,30]
[393918981,1763095745811,880.9,0.00041092,30]
[393918982,1763095746057,880.9,0.00041092,30]
[393918983,1763095746295,880.9,0.00041092,30]
[393918984,1763095746707,880.9,0.00041092,30]
[393918985,1763095746801,880.9,0.00041092,30]
[393918986,1763095747016,880.9,0.00041092,30]
[393918987,1763095747240,880.9,0.00041092,30]
[393918988,1763095747476,880.9,0.00041092,30]
[393918989,1763095747752,880.9,0.00041092,30]
[393918990,1763095747984,880.9,0.00041092,30]
[393918991,1763095748361,881.11298473,0.00041092,30]
[393918994,1763095761380,305.200016,0.00041092,30]
[393918995,1763095771340,500.0,0.00041092,30]
[393918996,1763095771630,500.0,0.00041092,30]
[393918997,1763095774702,500.0,0.00041092,30]
[393918998,1763095774932,500.0,0.00041092,30]
[393919001,1763095777596,500.0,0.00041092,30]
[393919002,1763095777835,500.0,0.00041092,30]
[393919003,1763095778090,500.0,0.00041092,30]
[393919004,1763095778344,500.0,0.00041092,30]
[393919005,1763095778591,535.08114275,0.00041092,30]
[393919006,1763095779936,500.0,0.00041092,30]
[393919007,1763095780161,500.0,0.00041092,30]
[393919010,1763095781896,500.0,0.00041092,30]
[393919011,1763095782292,528.21422131,0.00041092,30]
[393919013,1763095785366,500.0,0.00041092,30]
[393919014,1763095785646,500.0,0.00041092,30]
[393919015,1763095791116,500.0,0.00041092,30]
[393919016,1763095791357,501.33113189,0.00041093,30]
[393919017,1763095808397,500.0,0.00016847,2]
[393919018,1763095811601,500.0,0.00041093,30]
[393919019,1763095813885,303.41876755,0.00041093,30]
[393919034,1763095831367,-187.40239261,0.00016942,2]
[393919036,1763095831377,-250.0,0.00016943,2]
[393919038,1763095831386,-226.13309337,0.00016944,2]
[393919042,1763095831426,-73.86690663,0.00016944,2]
[393919044,1763095831437,-1394.06227761,0.00016947,2]
[393919045,1763095831449,-1565.50772239,0.00016947,2]
[393919047,1763095831458,-300.0,0.00017082,2]
[393919049,1763095831467,-300.0,0.00017082,2]
[393919051,1763095831480,-400.0,0.000171,6]
[393919053,1763095831490,-400.0,0.000171,6]
[393919055,1763095831500,-800.0,0.000172,6]
[393919057,1763095831509,-900.0,0.000172,6]
[393919058,1763095831519,-166.7,0.0001725,2]
[393919059,1763095831528,-1093.67223761,0.000173,6]
[393919060,1763095831539,-106.32776239,0.000173,6]
[393919061,1763095831549,-1300.0,0.000173,6]
[393919062,1763095831561,-546.18885906,0.000174,6]
[393919063,1763095831575,-253.21840679,0.000174,6]
[393919064,1763095831586,-800.59273415,0.000174,6]
[393919065,1763095831595,-1800.0,0.000174,6]
[393919066,1763095831605,-300.0,0.00017427,2]
[393919067,1763095831614,-1099.0,0.00017428,2]
[393919068,1763095831623,-2000.0,0.000175,6]
[393919069,1763095831632,-2200.0,0.000175,6]
[393919070,1763095831641,-163.24512812,0.00017503,2]
[393919071,1763095831657,-617.44373155,0.00017503,2]
[393919072,1763095831667,-180.3872281,0.00017503,2]
[393919073,1763095831676,-1000.0,0.00017503,2]
[393919074,1763095831686,-1089.73117808,0.00017503,2]
[393919075,1763095831845,-1410.26882192,0.00017503,2]
[393919076,1763095831854,-617.44373154,0.00017547,2]
[393919077,1763095831863,-617.44373154,0.00017591,2]
[393919078,1763095831872,-151.0,0.00017592,2]
[393919079,1763095831882,-144.203715,0.00017592,2]
[393919080,1763095836450,-919.2182,0.00017503,2]
[393919081,1763095836461,-6.796285,0.00017592,2]
[393919082,1763095836471,-151.0,0.00017592,2]
[393919083,1763095836481,-151.0,0.00017592,2]
[393919084,1763095836492,-151.0,0.00017592,2]
[393919085,1763095836503,-151.0,0.00017592,2]
[393919086,1763095836512,-151.0,0.00017592,2]
[393919087,1763095836522,-151.0,0.00017592,2]
[393919088,1763095836533,-151.0,0.00017592,2]
[393919089,1763095836543,-151.0,0.00017592,2]
[393919090,1763095836552,-151.0,0.00017592,2]
[393919091,1763095836561,-151.0,0.00017592,2]
[393919092,1763095836572,-100.191056,0.00017592,2]
[393919093,1763095836583,-50.808944,0.00017592,2]
[393919094,1763095836592,-151.0,0.00017592,2]
[393919095,1763095836602,-151.0,0.00017592,2]
[393919096,1763095836611,-136.93575623,0.00017592,2]
[393919097,1763095836623,-14.06424377,0.00017592,2]
[393919099,1763095836633,-151.0,0.00017592,2]
[393919101,1763095836642,-151.0,0.00017592,2]
[393919103,1763095836651,-31.42575523,0.00017592,2]
[393919120,1763095837366,-119.57424477,0.00017592,2]
[393919121,1763095837376,-151.0,0.00017592,2]
[393919122,1763095837385,-400.0,0.000176,6]
[393919123,1763095837394,-400.0,0.000176,6]
[393919124,1763095837409,-2837.42575523,0.00017601,2]
[393919125,1763095837421,-288.75296258,0.00017601,2]
[393919126,1763095837472,-683.86128219,0.00017601,2]
[393919127,1763095837486,-500.0,0.00017602,2]
[393919128,1763095837495,-500.0,0.00017602,2]
[393919129,1763095837505,-500.0,0.00017602,2]
[393919130,1763095837514,-500.0,0.00017602,2]
[393919131,1763095837525,-73.69214919,0.00017602,2]
[393919132,1763095837540,-426.30785081,0.00017602,2]
[393919133,1763095837550,-500.0,0.00017602,2]
[393919134,1763095837559,-500.0,0.00017602,2]
[393919135,1763095837569,-571.72579273,0.00017602,2]
[393919136,1763095837579,-500.0,0.00017602,2]
[393919137,1763095837591,-500.0,0.00017602,2]
[393919138,1763095837601,-500.0,0.00017602,2]
[393919139,1763095837610,-500.0,0.00017602,2]
[393919140,1763095837619,-345.84161797,0.00017602,2]
[393919141,1763095837628,-571.38017478,0.00017602,2]
[393919142,1763095837638,-396.48570665,0.00017602,2]
[393919143,1763095837647,-317.90984497,0.00017602,2]
[393919144,1763095837659,-164.9769611,0.00017602,2]
[393919145,1763095837668,-244.90804126,0.00017602,2]
[393919146,1763095837677,-500.0,0.00017602,2]
[393919147,1763095837686,-549.59122954,0.00017602,2]
[393919148,1763095837695,-500.0,0.00017602,2]
[393919149,1763095837705,-500.0,0.00017602,2]
[393919151,1763095837714,-500.0,0.00017602,2]
[393919153,1763095837724,-500.0,0.00017602,2]
[393919156,1763095837734,-500.0,0.00017602,2]
[393919158,1763095837744,-500.0,0.00017602,2]
[393919159,1763095837753,-500.0,0.00017602,2]
[393919162,1763095837762,-500.0,0.00017602,2]
[393919164,1763095837771,-500.0,0.00017602,2]
[393919166,1763095837781,-500.0,0.00017602,2]
[393919168,1763095837794,-500.0,0.00017602,2]
[393919170,1763095837803,-400.0,0.00017602,2]
[393919172,1763095837812,-500.0,0.00017602,2]
[393919174,1763095837821,-500.0,0.00017602,2]
[393919176,1763095837831,-500.0,0.00017602,2]
[393919178,1763095837840,-500.0,0.00017602,2]
[393919180,1763095837849,-500.0,0.00017602,2]
[393919182,1763095837858,-286.84938763,0.00017602,2]
[393919184,1763095837867,-500.0,0.00017602,2]
[393919186,1763095837876,-503.92598697,0.00017602,2]
[393919188,1763095837885,-500.0,0.00017602,2]
[393919190,1763095837895,-500.0,0.00017602,2]
[393919192,1763095837908,-113.29949023,0.00017602,2]
[393919194,1763095837919,-324.10063258,0.00017602,2]
[393919196,1763095837930,-62.59987719,0.00017602,2]
[393919198,1763095837939,-500.0,0.00017602,2]
[393919200,1763095837949,-500.0,0.00017602,2]
[393919202,1763095837959,-543.0041758,0.00017602,2]
[393919204,1763095837968,-500.0,0.00017602,2]
[393919206,1763095837977,-500.0,0.00017602,2]
[393919208,1763095837988,-500.0,0.00017602,2]
[393919210,1763095837998,-500.0,0.00017602,2]
[393919213,1763095838007,-500.0,0.00017602,2]
[393919215,1763095838017,-500.0,0.00017602,2]
[393919217,1763095838026,-500.0,0.00017602,2]
[393919219,1763095838039,-500.0,0.00017602,2]
[393919221,1763095838049,-500.0,0.00017602,2]
[393919223,1763095838058,-636.43900828,0.00017602,2]
[393919225,1763095838068,-73456.34237033,0.00017603,2]
[393919227,1763095838080,-346543.65762967,0.00017603,2]
[393919229,1763095838091,-1000.0,0.00017603,2]
[393919231,1763095838100,-5835.7861,0.00017603,2]
[393919233,1763095838110,-617.44373154,0.00017635,2]
[393919235,1763095838120,-500.0,0.00017673,2]
[393919237,1763095838130,-608.37698903,0.00017673,2]
[393919239,1763095838139,-544.54070605,0.00017673,2]
[393919241,1763095838149,-500.0,0.00017673,2]
[393919243,1763095838165,-200.41214143,0.00017673,2]
[393919245,1763095838175,-497.32454221,0.00017673,2]
[393919247,1763095838185,-506.3715754,0.00017673,2]
[393919249,1763095838194,-500.0,0.00017673,2]
[393919251,1763095838204,-500.0,0.00017673,2]
[393919253,1763095838214,-501.05164124,0.00017673,2]
[393919255,1763095838224,-500.0,0.00017673,2]
[393919258,1763095838234,-500.0,0.00017673,2]
[393919260,1763095838245,-500.0,0.00017673,2]
[393919261,1763095838255,-500.0,0.00017673,2]
[393919263,1763095838265,-500.0,0.00017673,2]
[393919266,1763095838275,-500.68799219,0.00017673,2]
[393919268,1763095838284,-500.0,0.00017673,2]
[393919270,1763095838294,-532.79675222,0.00017673,2]
[393919273,1763095838314,-500.0,0.00017673,2]
[393919275,1763095838324,-617.44373154,0.00017679,2]
[393919277,1763095838333,-400.0,0.000177,6]
[393919279,1763095838344,-400.0,0.000177,6]
[393919281,1763095838354,-500.0,0.00017702,2]
[393919283,1763095838364,-617.44373154,0.00017724,2]
[393919285,1763095838373,-500.0,0.00017727,2]
[393919287,1763095838384,-500.0,0.00017727,2]
[393919289,1763095838394,-500.0,0.00017727,2]
[393919291,1763095838407,-562.27093051,0.00017727,2]
[393919293,1763095838418,-500.0,0.00017727,2]
[393919295,1763095838428,-2693.37,0.00017728,2]
[393919297,1763095838439,-1736.55,0.00017728,2]
[393919299,1763095838451,-1429.42,0.00017728,2]
[393919301,1763095838461,-1169.35,0.00017728,2]
[393919303,1763095838471,-9999.99,0.00017728,2]
[393919305,1763095838484,-9441.82,0.00017728,2]
[393919307,1763095838494,-419.53,0.00017728,2]
[393919309,1763095838504,-150.99,0.00017728,2]
[393919311,1763095838513,-151.0,0.00017733,2]
[393919313,1763095838523,-151.0,0.00017738,2]
[393919315,1763095838532,-151.0,0.00017742,2]
[393919317,1763095838542,-151.0,0.00017743,2]
[393919319,1763095838552,-151.0,0.00017748,2]
[393919321,1763095838562,-1099.0,0.0001775,2]
[393919323,1763095838576,-617.44373154,0.00017768,2]
[393919325,1763095838587,-1099.0,0.0001778,2]
[393919327,1763095838597,-400.0,0.000178,6]
[393919329,1763095838607,-400.0,0.000178,6]
[393919331,1763095838617,-575.0,0.00017804,2]
[393919333,1763095838628,-3429.0,0.00017804,2]
[393919336,1763095838639,-608.0,0.00017804,2]
[393919337,1763095838650,-1318.0,0.00017804,2]
[393919340,1763095838664,-821.0,0.00017804,2]
[393919342,1763095838675,-1598.0,0.00017804,2]
[393919344,1763095838685,-907.0,0.00017804,2]
[393919346,1763095838695,-1275.0,0.00017804,2]
[393919348,1763095838705,-814.0,0.00017804,2]
[393919350,1763095838715,-2145.0,0.00017804,2]
[393919352,1763095838725,-560.0,0.00017804,2]
[393919354,1763095838735,-6669.0,0.00017804,2]
[393919356,1763095838745,-617.44373154,0.00017812,2]
[393919358,1763095838755,-617.44373154,0.00017856,2]
[393919360,1763095838766,-163.24512812,0.000179,2]
[393919362,1763095838779,-617.44373154,0.000179,2]
[393919364,1763095838789,-226.99612483,0.000179,2]
[393919366,1763095838799,-400.0,0.000179,6]
[393919368,1763095838809,-226.77554458,0.000179,3]
[393919370,1763095838819,-181.79743982,0.000179,2]
[393919372,1763095838830,-4698.74816903,0.000179,2]
[393919374,1763095838840,-400.0,0.000179,6]
[393919376,1763095838850,-6103.97369591,0.000179,2]
[393919378,1763095838861,-500.0,0.00017909,2]
[393919381,1763095838871,-500.0,0.00017909,2]
[393919383,1763095838881,-168.0,0.0001791,2]
[393919385,1763095838891,-7513.0,0.00017973,2]
[393919387,1763095838901,-9133.0,0.00017973,2]
[393919389,1763095838917,-6819.0,0.00017973,2]
[393919391,1763095838927,-895.0,0.00017973,2]
[393919393,1763095838938,-501.32609967,0.00017973,2]
[393919395,1763095838948,-501.78019662,0.00017973,2]
[393919397,1763095838960,-150.85217549,0.00017973,2]
[393919399,1763095838971,-505.00673889,0.00017973,2]
[393919402,1763095838984,-355.7704534,0.00017973,2]
[393919404,1763095838993,-521.62533127,0.00017987,2]
[393919406,1763095839004,-2621.36612623,0.0001799,2]
[393919408,1763095839013,-2621.36612623,0.0001799,2]
[393919410,1763095839024,-2621.36612623,0.0001799,2]
[393919412,1763095839034,-161.01,0.00017999,2]
[393919414,1763095839043,-220.19,0.00017999,2]
[393919416,1763095839053,-360.30042686,0.00017999,2]
[393919418,1763095839063,-300.0,0.00017999,2]
[393919420,1763095839072,-500.0,0.00017999,2]
[393919422,1763095839082,-500.0,0.00017999,2]
[393919424,1763095839091,-500.0,0.00017999,2]
[393919426,1763095839100,-217.49787883,0.00017999,2]
[393919427,1763095839110,-300.0,0.00017999,2]
[393919429,1763095839119,-300.0,0.00017999,2]
[393919431,1763095839128,-300.0,0.00017999,2]
[393919433,1763095839138,-500.0,0.00017999,2]
[393919435,1763095839148,-500.0,0.00017999,2]
[393919437,1763095839162,-500.0,0.00017999,2]
[393919440,1763095839177,-500.0,0.00017999,2]
[393919442,1763095839186,-500.0,0.00017999,2]
[393919444,1763095839195,-337.97311388,0.00017999,2]
[393919445,1763095839205,-500.0,0.00017999,2]
[393919446,1763095839215,-500.0,0.00017999,2]
[393919447,1763095839225,-500.0,0.00017999,2]
[393919449,1763095839234,-500.0,0.00017999,2]
[393919451,1763095839244,-500.0,0.00017999,2]
[393919453,1763095839254,-500.0,0.00017999,2]
[393919455,1763095839264,-500.0,0.00017999,2]
[393919457,1763095839274,-500.0,0.00017999,2]
[393919459,1763095839283,-500.0,0.00017999,2]
[393919461,1763095839293,-500.0,0.00017999,2]
[393919463,1763095839303,-500.0,0.00017999,2]
[393919464,1763095839312,-500.0,0.00017999,2]
[393919466,1763095839322,-500.0,0.00017999,2]
[393919468,1763095839331,-500.0,0.00017999,2]
[393919470,1763095839341,-500.0,0.00017999,2]
[393919473,1763095839350,-500.0,0.00017999,2]
[393919475,1763095839360,-500.0,0.00017999,2]
[393919477,1763095839369,-414.79117042,0.00017999,2]
[393919479,1763095839379,-1074.00022594,0.00017999,5]
[393919481,1763095839388,-1074.00022595,0.00017999,5]
[393919483,1763095839397,-500.0,0.00017999,2]
[393919485,1763095839409,-500.0,0.00017999,2]
[393919487,1763095839418,-500.0,0.00017999,2]
[393919489,1763095839428,-500.0,0.00017999,2]
[393919492,1763095839438,-500.0,0.00017999,2]
[393919494,1763095839447,-500.0,0.00017999,2]
[393919496,1763095839457,-500.0,0.00017999,2]
[393919498,1763095839467,-500.0,0.00017999,2]
[393919500,1763095839478,-500.0,0.00017999,2]
[393919501,1763095839490,-500.0,0.00017999,2]
[393919504,1763095839500,-1066.66237962,0.00017999,5]
[393919506,1763095839509,-500.0,0.00017999,2]
[393919508,1763095839519,-500.0,0.00017999,2]
[393919510,1763095839528,-500.0,0.00017999,2]
[393919512,1763095839538,-500.0,0.00017999,2]
[393919514,1763095839553,-500.0,0.00017999,2]
[393919516,1763095839563,-500.0,0.00017999,2]
[393919518,1763095839574,-628.66822249,0.00017999,2]
[393919520,1763095839583,-300.0,0.00017999,2]
[393919522,1763095839593,-1066.66237962,0.00017999,5]
[393919524,1763095839603,-1066.66237962,0.00017999,5]
[393919526,1763095839613,-300.0,0.00017999,2]
[393919528,1763095839623,-500.0,0.00017999,2]
[393919531,1763095839633,-510.26419869,0.00017999,2]
[393919533,1763095839644,-5612.0,0.00018,2]
[393919535,1763095839657,-153.31134626,0.00018,2]
[393919537,1763095839666,-3287249.9987024,0.00018,2]
[393919539,1763095839675,-6842117.28616017,0.00018,2]
[393919541,1763095839691,-617.13385051,0.00018,2]
[393919543,1763095839707,-984.52589463,0.00018,2]
[393919544,1763095839718,-5411.79559215,0.00018,2]
[393919545,1763095839729,-19600.0,0.00018,2]
[393919546,1763095839740,-281.00000004,0.00018,2]
[393919560,1763095839884,-233.0,0.00017745,2]
[393919562,1763095839895,-255.81833,0.00017804,2]
[393919564,1763095839912,-6230.18167,0.00017804,2]
[393919567,1763095839929,-46.98922999,0.00018,2]
[393919569,1763095839943,-974.11,0.00018,2]
[393919572,1763095839958,-95050.62427929,0.00018,2]
[393919574,1763095839969,-1083.4,0.00018,2]
[393919577,1763095839982,-297.08879946,0.00018,2]
[393920020,1763095844774,-315.315,0.00017503,2]
[393920021,1763095844786,-1240.08180558,0.00017503,2]
[393920034,1763095844992,-300.0,0.000172,6]
[393920035,1763095845001,-4200.17096845,0.00017503,2]
[393920036,1763095845012,-128490.89647046,0.00017503,2]
[393920037,1763095845049,-12696.27647998,0.00017503,2]
[393920038,1763095845059,-11328.85379789,0.00017503,2]
[393920039,1763095845070,-702.5616,0.00017503,2]
[393920040,1763095845082,-6855.90067227,0.00017503,2]
[393920041,1763095845106,-3510.8073,0.00017503,2]
[393920042,1763095845117,-187485.46528017,0.00017503,2]
[393920043,1763095845167,-1217.6048944,0.00017503,2]
[393920058,1763095845275,-1614.77246,0.00017503,2]
[393920059,1763095845334,-3439.16975584,0.00017503,2]
[393920077,1763095845578,-990.75833395,0.00017503,2]
[393920081,1763095845589,-4850.0,0.00017503,2]
[393920149,1763095845855,-364.00002,0.00017503,2]
[393920151,1763095845866,-774.50000158,0.00017503,2]
[393920154,1763095845877,-362.5,0.00017503,2]
[393920157,1763095845888,-290.856,0.00017503,2]
[393920159,1763095845899,-424.56000003,0.00017503,2]
[393920161,1763095845912,-351.50572488,0.00017503,2]
[393920163,1763095845923,-567.09999968,0.00017503,2]
[393920164,1763095845934,-19701.5,0.00017503,2]
[393920165,1763095845945,-10486.35440012,0.00017503,2]
[393920166,1763095845958,-17738.48903472,0.00017503,2]
[393920167,1763095845972,-160.5,0.00017524,2]
[393920168,1763095845981,-500.0,0.00017602,2]
[393920169,1763095845991,-151.0,0.00017757,2]
[393920170,1763095846000,-30139.97916528,0.00018,2]
[393920171,1763095846011,-7492.46629465,0.00018,2]
[393920179,1763095847893,500.0,0.00041093,30]
[393920180,1763095848133,525.04742638,0.00041093,30]
[393920185,1763095868408,500.0,0.00041093,30]
[393920186,1763095868704,500.0,0.00041093,30]
[393920188,1763095868976,500.0,0.00041093,30]
[393920189,1763095869256,500.0,0.00041093,30]
[393920190,1763095874503,480.0530135,0.00041093,30]
[393920192,1763095885612,2000.0,0.00041093,30]
[393920193,1763095885670,2000.0,0.00041093,30]
[393920195,1763095897836,485.30626922,0.00041093,30]
[393920202,1763095942717,500.0,0.00041093,30]
[393920203,1763095942980,500.0,0.00041093,30]